bitfinex/quotes_ETHUSD_20250620
["timestamp","ask_amount","ask_price","bid_price","bid_amount"]
[1750459429926,7.91,2394.7,2394.6,4.1760628]
[1750459431562,10.0,2394.9,2394.5,4.17623589]
[1750459431563,2.447,2395.1,2395.0,4.17534209]
[1750459431735,0.05219288,2395.1,2395.0,4.17534209]
[1750459431937,10.0972,2395.4,2395.3,4.17484239]
[1750459432139,0.21808782,2395.8,2394.7,4.17588842]
[1750459432322,0.21808782,2395.8,2394.1,10.0]
[1750459432323,40.0,2395.9,2394.9,0.75]
[1750459432527,8.80759282,2396.1,2395.1,4.17503693]
[1750459432528,0.0622,2395.7,2395.1,4.17503693]
[1750459432738,10.0622,2395.7,2395.6,4.17428835]
[1750459433162,0.0622,2395.7,2395.6,4.17428835]
[1750459433364,7.856,2395.8,2395.7,4.17414534]
[1750459433943,17.856,2395.8,2395.7,4.17414534]
[1750459434145,7.856,2395.8,2395.7,4.17414534]
[1750459435550,7.9142,2395.8,2395.7,4.17404217]
[1750459437380,7.9142,2395.8,2394.8,0.49258884]
[1750459437678,0.0622,2395.6,2395.5,4.17440844]
[1750459439055,0.1143823,2395.7,2395.6,4.17431958]
[1750459439579,7.8692,2395.7,2395.6,4.17431958]
[1750459439941,7.807,2395.7,2395.6,4.17431958]
[1750459440278,0.0622,2396.0,2395.8,4.17390075]
[1750459440446,7.8592,2395.9,2395.8,4.17390075]
[1750459440648,8.23917704,2395.9,2395.7,4.17412715]
[1750459440844,0.0622,2395.7,2394.9,1.291832]
[1750459441148,0.0622,2395.5,2395.4,4.17466403]
[1750459441348,0.11438478,2395.5,2395.4,4.17466403]
[1750459441681,0.11438478,2395.5,2394.9,4.9254248]
[1750459441857,0.11438478,2395.5,2395.4,4.17466811]
[1750459442977,0.49521932,2395.5,2395.4,4.17466811]
[1750459443195,0.11438478,2395.5,2395.4,4.17466811]
[1750459443398,0.0622,2395.5,2395.4,4.17466811]
[1750459443592,2.18713307,2396.1,2396.0,4.1736227]
[1750459443779,10.62842684,2396.1,2396.0,4.1736227]
[1750459444096,4.401,2397.2,2396.0,4.1736227]
[1750459444097,1.25389,2398.5,2397.5,14.17101147]
[1750459444402,0.0589,2399.4,2399.1,4.16822975]
[1750459444403,0.41409933,2399.2,2399.1,4.16822975]
[1750459444561,0.41409933,2399.2,2398.5,0.8277]
[1750459444562,30.0,2399.1,2398.5,0.8277]
[1750459444758,30.0589,2398.9,2398.6,0.02087123]
[1750459444955,0.0589,2398.8,2398.6,0.02087123]
[1750459445299,0.0589,2398.8,2398.6,4.16907938]
[1750459445592,0.0589,2398.7,2398.6,4.16907274]
[1750459445793,0.11101359,2398.7,2398.6,4.16907274]
[1750459446182,2.6909,2399.0,2398.9,4.16857726]
[1750459446383,0.32799,2399.0,2398.8,4.16867971]
[1750459446588,0.0589,2398.9,2398.8,4.16867971]
[1750459446811,18.2639,2398.9,2398.8,4.16867971]
[1750459446983,2.632,2399.3,2398.9,4.16848573]
[1750459447177,0.0589,2399.0,2398.9,4.16848573]
[1750459447897,0.0589,2399.0,2398.9,4.16857726]
[1750459448198,0.0589,2398.7,2397.7,0.41802603]
[1750459448497,3.77225,2398.7,2398.6,4.16894496]
[1750459448671,8.2419,2398.7,2398.6,4.16894496]
[1750459448872,8.183,2398.7,2398.6,4.16894496]
[1750459449394,0.0589,2399.0,2398.9,4.16857726]
[1750459449596,0.0589,2399.2,2398.2,4.16972537]
[1750459449789,10.0,2399.1,2399.0,4.1684035]
[1750459451811,0.0589,2399.2,2399.1,4.16822975]
[1750459452170,10.0,2399.3,2399.2,4.16805601]
[1750459452372,10.0589,2399.3,2399.2,4.16805601]
[1750459453320,0.0589,2399.6,2399.5,4.1673934]
[1750459453516,4.80149927,2399.6,2399.5,4.1673934]
[1750459453804,12.93049927,2399.6,2399.5,4.1673934]
[1750459454168,22.93049927,2399.6,2399.5,4.1673934]
[1750459455409,20.8139,2399.6,2399.5,4.1673934]
[1750459455869,20.755,2399.6,2399.5,4.1673934]
[1750459456070,0.2208927,2399.7,2399.6,4.16736122]
[1750459456272,8.3188927,2399.7,2399.6,4.16736122]
[1750459456796,18.3188927,2399.7,2399.6,4.16736122]
[1750459458074,0.2208927,2399.7,2399.6,4.16736122]
[1750459460492,0.2208927,2404.5,2399.6,4.16736122]
[1750459460493,0.2208927,2402.1,2401.7,0.55]
[1750459460695,0.2208927,2402.1,2402.0,4.16319733]
[1750459461010,0.2208927,2402.1,2401.4,4.16417701]
[1750459461185,0.2797927,2402.1,2402.0,4.16319733]
[1750459461389,10.0,2402.0,2401.6,4.16389073]
[1750459461602,0.0589,2402.0,2401.9,4.16337066]
[1750459461771,0.11094169,2402.0,2401.9,4.16337066]
[1750459461990,0.11094172,2402.0,2401.9,4.16337066]
[1750459462413,0.11094148,2402.0,2401.9,4.16337066]
[1750459463713,8.9708927,2402.1,2402.0,4.16319733]
[1750459464080,9.0297927,2402.1,2402.0,4.16319733]
[1750459464290,0.2208927,2402.1,2402.0,4.16319733]
[1750459465100,0.2797927,2402.1,2402.0,4.16319733]
[1750459465503,0.2797927,2402.1,2400.9,0.8222]
[1750459465504,0.55,2401.8,2400.9,0.8222]
[1750459465813,10.11095145,2401.7,2401.6,4.16375548]
[1750459466129,11.94339515,2401.7,2401.6,4.16375548]
[1750459467610,0.0589,2401.6,2400.6,8.724]
[1750459467811,0.0589,2401.6,2401.5,4.1639269]
[1750459468613,0.1109487,2401.6,2401.5,4.1639269]
[1750459469317,12.69889515,2401.7,2401.5,4.1639269]
[1750459469318,11.88449515,2401.7,2401.6,4.16389073]
[1750459469526,10.0589,2401.7,2401.6,4.16389073]
[1750459471999,18.645,2401.8,2401.7,4.16358646]
[1750459472529,10.0,2401.8,2401.7,4.16358646]
[1750459472692,10.0576,2401.8,2401.7,4.16358646]
[1750459473328,10.0,2401.8,2401.7,4.16358646]
[1750459473531,10.0576,2401.8,2401.7,4.16358646]
[1750459473743,20.86096,2401.8,2401.2,0.8323]
[1750459473944,0.05204931,2401.7,2401.6,4.16385672]
[1750459474091,0.10964931,2401.7,2401.6,4.16385672]
[1750459474655,0.10964931,2401.7,2399.2,0.8323]
[1750459474656,1.3155,2401.2,2399.2,0.8323]
[1750459474801,0.0576,2400.2,2400.0,4.1665417]
[1750459475118,10.0576,2400.1,2400.0,4.1665125]
[1750459475301,18.635,2400.1,2400.0,4.1665125]
[1750459475644,10.0,2400.1,2400.0,4.1665125]
[1750459476827,10.22720352,2400.1,2400.0,4.1665125]
[1750459477405,10.22734527,2400.1,2400.0,4.1665125]
[1750459478209,10.22757286,2400.1,2400.0,4.1665125]
[1750459478407,10.22757052,2400.1,2400.0,4.1665125]
[1750459480205,10.0,2400.1,2400.0,4.1665125]
[1750459480525,10.22767846,2400.1,2400.0,4.1665125]
[1750459480912,10.60785723,2400.1,2400.0,4.1665125]
[1750459481220,10.60785336,2400.1,2400.0,4.1665125]
[1750459481737,0.22794303,2400.1,2400.0,4.1665125]
[1750459482444,10.0,2400.5,2400.4,4.16597233]
[1750459482741,10.60795265,2400.5,2400.4,4.16597233]
[1750459482949,0.55,2400.4,2399.0,0.40667961]
[1750459483107,0.55,2399.1,2397.8,0.0264]
[1750459483308,0.0576,2398.6,2398.1,4.16995071]
[1750459483510,0.22788351,2398.5,2398.3,4.16962014]
[1750459483727,9.18968696,2398.4,2398.3,4.16962014]
[1750459484107,0.60768696,2398.4,2398.3,4.16962014]
[1750459484311,0.60791235,2398.4,2398.3,4.16962014]
[1750459484528,0.60791,2398.4,2398.3,4.16962014]
[1750459484762,0.60828426,2398.4,2398.3,4.16962014]
[1750459485443,0.38017861,2398.4,2398.3,4.16962014]
[1750459485644,0.60829826,2398.4,2398.3,4.16962014]
[1750459486043,0.60831073,2398.4,2398.3,4.16962014]
[1750459486475,0.60830288,2398.4,2398.3,4.16962014]
[1750459486634,0.60830304,2398.4,2398.3,4.16962014]
[1750459486838,8.577,2398.6,2398.5,4.16927246]
[1750459487038,8.95615649,2398.6,2398.5,4.16927246]
[1750459487252,9.18365024,2398.6,2398.5,4.16927246]
[1750459487566,9.18370942,2398.6,2398.5,4.16927246]
[1750459488652,0.60670942,2398.6,2398.5,4.16927246]
[1750459488850,10.0,2398.6,2398.5,4.16927246]
[1750459489393,10.22752308,2398.6,2398.5,4.16927246]
[1750459489597,8.506,2399.0,2398.9,4.16857726]
[1750459489892,18.79107765,2399.0,2398.9,4.16857726]
[1750459490250,18.73347765,2399.0,2398.9,4.16857726]
[1750459490467,8.506,2399.0,2398.9,4.16857726]
[1750459490718,10.005,2399.2,2399.1,4.16822975]
[1750459490853,8.503,2399.3,2399.2,4.16805601]
[1750459491044,44.2573,2399.6,2399.5,4.1675349]
[1750459491246,31.42422888,2399.6,2399.5,4.1675349]
[1750459491443,19.91324688,2399.6,2399.5,4.1675349]
[1750459492015,19.91324903,2399.6,2399.5,4.1675349]
[1750459492176,11.42427717,2399.6,2399.5,4.1675349]
[1750459492709,22.41054137,2399.6,2399.5,4.1675349]
[1750459492913,22.78943978,2399.6,2399.5,4.1675349]
[1750459493218,19.13774017,2399.6,2399.5,4.1675349]
[1750459493508,10.0576,2399.5,2399.4,4.16762064]
[1750459493662,10.28490815,2399.5,2399.4,4.16762064]
[1750459493863,0.28490815,2399.5,2399.4,4.16762064]
[1750459494185,8.69231018,2399.5,2399.4,4.16762064]
[1750459494675,8.465,2399.5,2399.4,4.16762064]
[1750459494881,8.69230977,2399.5,2399.4,4.16762064]
[1750459495089,8.465,2399.5,2399.4,4.16762064]
[1750459495291,8.69230933,2399.5,2399.4,4.16762064]
[1750459496092,8.69253178,2399.5,2399.4,4.16762064]
[1750459497257,8.69252865,2399.5,2399.4,4.16762064]
[1750459497495,8.75012865,2399.5,2399.4,4.16762064]
[1750459497789,8.75044343,2399.5,2399.4,4.16762064]
[1750459497993,8.5226,2399.5,2399.4,4.16762064]
[1750459498192,8.75044162,2399.5,2399.4,4.16762064]
[1750459499173,8.5226,2399.5,2399.4,4.16762064]
[1750459499522,8.6927832,2399.5,2399.4,4.16762064]
[1750459499998,8.69277583,2399.5,2399.4,4.16762064]
[1750459500358,8.465,2399.5,2399.4,4.16762064]
[1750459500561,8.69277087,2399.5,2399.4,4.16762064]
[1750459501107,8.69277087,2399.5,2399.3,4.16776959]
[1750459501108,0.0576,2399.4,2399.3,4.16776959]
[1750459501402,0.0520997,2399.4,2399.3,4.16776959]
[1750459501605,8.58527121,2399.4,2399.3,4.16776959]
[1750459501807,18.58527121,2399.4,2399.3,4.16776959]
[1750459502862,18.58528478,2399.4,2399.3,4.16776959]
[1750459503107,10.22828478,2399.4,2399.3,4.16776959]
[1750459503277,18.34,2399.4,2399.3,4.16776959]
[1750459503477,10.0,2399.4,2399.3,4.16776959]
[1750459503713,18.56908599,2399.4,2399.3,4.16776959]
[1750459504222,0.22908599,2399.4,2399.3,4.16776959]
[1750459504372,1.02510876,2400.0,2399.9,4.16684028]
[1750459504373,10.10998871,2400.0,2399.9,4.16684028]
[1750459504577,0.66883304,2400.0,2399.9,4.16684028]
[1750459504920,19.04708079,2400.0,2399.9,4.16684028]
[1750459505066,18.99499487,2400.0,2399.9,4.16684028]
[1750459505467,18.99499892,2400.0,2399.9,4.16684028]
[1750459505667,18.99498889,2400.0,2399.9,4.16684028]
[1750459505867,18.99510562,2400.0,2399.9,4.16684028]
[1750459506098,18.99510817,2400.0,2399.9,4.16684028]
[1750459506315,18.76590511,2400.0,2399.9,4.16684028]
[1750459506887,18.99510416,2400.0,2399.9,4.16684028]
[1750459507193,18.76595022,2400.0,2399.9,4.16684028]
[1750459507395,18.76595022,2400.0,2398.9,4.16845496]
[1750459507396,0.0579,2399.8,2399.0,0.7917]
[1750459507575,18.58212755,2399.7,2399.6,4.16723606]
[1750459507978,18.58222328,2399.7,2399.6,4.16723606]
[1750459508887,21.20232328,2399.7,2399.6,4.16723606]
[1750459509095,10.2293271,2399.7,2399.6,4.16723606]
[1750459509272,18.5023275,2399.7,2399.6,4.16723606]
[1750459509472,10.2293275,2399.7,2399.6,4.16723606]
[1750459509685,18.266,2399.7,2399.6,4.16723606]
[1750459509885,18.49537384,2399.7,2399.6,4.16723606]
[1750459510085,18.4954216,2399.7,2399.6,4.16723606]
[1750459510387,18.4954216,2399.7,2398.9,4.19485496]
[1750459510388,0.0579,2399.5,2399.4,4.16768791]
[1750459510592,8.98069609,2399.5,2399.4,4.16768791]
[1750459510789,8.92859746,2399.5,2399.4,4.16768791]
[1750459511005,10.0579,2399.4,2399.3,4.1677956]
[1750459511220,1.3606,2399.3,2399.2,4.16805601]
[1750459511417,22.96882309,2399.3,2399.2,4.16805601]
[1750459511620,22.91672784,2399.3,2399.2,4.16805601]
[1750459511818,11.97272784,2399.3,2399.2,4.16805601]
[1750459512018,22.68819023,2399.3,2399.2,4.16805601]
[1750459512319,22.91776406,2399.3,2399.2,4.16805601]
[1750459512521,22.91776535,2399.3,2399.2,4.16805601]
[1750459513619,11.59016199,2399.3,2399.2,4.16805601]
[1750459513826,22.91283419,2399.3,2399.2,4.16805601]
[1750459514024,23.29610371,2399.3,2399.2,4.16805601]
[1750459514230,23.0661369,2399.3,2399.2,4.16805601]
[1750459514414,11.74919084,2399.3,2399.2,4.16805601]
[1750459514612,19.21548473,2399.3,2399.2,4.16805601]
[1750459514821,19.21550652,2399.3,2399.2,4.16805601]
[1750459515131,19.21551161,2399.3,2399.2,4.16805601]
[1750459515313,19.21551087,2399.3,2399.2,4.16805601]
[1750459515627,19.2155138,2399.3,2399.2,4.16805601]
[1750459515795,19.21551434,2399.3,2399.2,4.16805601]
[1750459516530,19.21534942,2399.3,2399.2,4.16805601]
[1750459516746,18.98538291,2399.3,2399.2,4.16805601]
[1750459516913,19.21560519,2399.3,2399.2,4.16805601]
[1750459517110,19.21605283,2399.3,2399.2,4.16805601]
[1750459517438,9.21605283,2399.3,2399.2,4.16805601]
[1750459517647,8.219,2399.3,2399.2,4.16805601]
[1750459517799,9.21666945,2399.3,2399.2,4.16805601]
[1750459517994,9.21666859,2399.3,2399.2,4.16805601]
[1750459518308,8.98643735,2399.3,2399.2,4.16805601]
[1750459518510,9.21666824,2399.3,2399.2,4.16805601]
[1750459518719,8.8329499,2399.3,2399.2,4.16805601]
[1750459519044,9.21666983,2399.3,2399.2,4.16805601]
[1750459519250,9.21666903,2399.3,2399.2,4.16805601]
[1750459519446,8.8329491,2399.3,2399.2,4.16805601]
[1750459519751,9.17166626,2399.3,2399.2,4.16805601]
[1750459519891,9.1719734,2399.3,2399.2,4.16805601]
[1750459520094,0.9979734,2399.3,2399.2,4.16805601]
[1750459520344,9.1552791,2399.3,2399.2,4.16805601]
[1750459520543,8.54102311,2399.3,2399.2,4.16805601]
[1750459520922,9.14846066,2399.3,2399.2,4.16805601]
[1750459521451,10.99846194,2399.3,2399.2,4.16805601]
[1750459521644,19.14546194,2399.3,2399.2,4.16805601]
[1750459522040,10.61443847,2399.3,2399.2,4.16805601]
[1750459522246,19.13846319,2399.3,2399.2,4.16805601]
[1750459522445,18.52398521,2399.3,2399.2,4.16805601]
[1750459522744,19.13836272,2399.3,2399.2,4.16805601]
[1750459523245,19.13838196,2399.3,2399.2,4.16805601]
[1750459523442,18.37041063,2399.3,2399.2,4.16805601]
[1750459523660,19.11444466,2399.3,2399.2,4.16805601]
[1750459523938,9.11444466,2399.3,2399.2,4.16805601]
[1750459524112,9.11445366,2399.3,2399.2,4.16805601]
[1750459524321,9.11446077,2399.3,2399.2,4.16805601]
[1750459524732,0.99846077,2399.3,2399.2,4.16805601]
[1750459524951,8.87804493,2399.3,2399.2,4.16805601]
[1750459525144,9.10845798,2399.3,2399.2,4.16805601]
[1750459525348,0.9984037,2399.3,2399.2,4.16805601]
[1750459525648,9.0944037,2399.3,2399.2,4.16805601]
[1750459525806,0.9984037,2399.3,2399.2,4.16805601]
[1750459526006,9.08840362,2399.3,2399.2,4.16805601]
[1750459526334,8.70435993,2399.3,2399.2,4.16805601]
[1750459526534,8.47396919,2399.3,2399.2,4.16805601]
[1750459526744,8.704332,2399.3,2399.2,4.16805601]
[1750459527245,8.70434553,2399.3,2399.2,4.16805601]
[1750459527445,8.32037634,2399.3,2399.2,4.16805601]
[1750459527737,0.23040501,2399.3,2399.2,4.16805601]
[1750459528046,8.32040501,2399.3,2399.2,4.16805601]
[1750459528422,8.32035511,2399.3,2399.2,4.16805601]
[1750459528943,0.23035511,2399.3,2399.2,4.16805601]
[1750459529110,0.6079,2399.9,2399.8,4.16701391]
[1750459529311,31.76523336,2399.9,2399.8,4.16701391]
[1750459529518,11.71315624,2399.9,2399.8,4.16701391]
[1750459529745,21.71319969,2399.9,2399.8,4.16701391]
[1750459529949,21.09886145,2399.9,2399.8,4.16701391]
[1750459530147,21.71320183,2399.9,2399.8,4.16701391]
[1750459530443,21.71320183,2399.9,2399.7,4.16714864]
[1750459530444,0.0579,2399.8,2399.7,4.16716933]
[1750459530634,1.10823114,2399.8,2399.7,4.16716933]
[1750459530832,1.10819899,2399.8,2399.7,4.16716933]
[1750459531041,1.05024704,2399.8,2399.6,4.16727645]
[1750459531211,19.10800742,2399.7,2399.6,4.16727645]
[1750459531412,19.10800668,2399.7,2399.6,4.16727645]
[1750459531869,0.0585,2399.5,2399.2,4.16796891]
[1750459532009,10.0585,2399.3,2399.2,4.16796891]
[1750459532314,12.88978208,2399.3,2399.2,4.16796891]
[1750459532516,13.27357496,2399.3,2399.2,4.16796891]
[1750459532825,0.23027079,2399.3,2399.2,4.16796891]
[1750459533155,10.542,2399.3,2399.2,4.16796891]
[1750459533360,10.77226933,2399.3,2399.2,4.16796891]
[1750459534947,11.15612186,2399.3,2399.2,4.16796891]
[1750459535152,0.55,2398.7,2397.7,4.95848098]
[1750459535369,10.0,2398.5,2398.3,4.16946889]
[1750459535526,19.13848256,2398.4,2398.3,4.16946889]
[1750459535716,19.08636083,2398.4,2398.3,4.16946889]
[1750459536347,10.0,2398.3,2398.2,4.16973072]
[1750459536552,10.67246143,2398.3,2398.2,4.16973072]
[1750459536713,10.2888064,2398.3,2398.2,4.16973072]
[1750459536915,10.0585,2398.3,2398.2,4.16973072]
[1750459537658,10.28806515,2398.3,2398.2,4.16973072]
[1750459538057,10.28810208,2398.3,2398.2,4.16973072]
[1750459538252,10.67078381,2398.3,2398.2,4.16973072]
[1750459538558,11.0534452,2398.3,2398.2,4.16973072]
[1750459538919,11.0534456,2398.3,2398.2,4.16973072]
[1750459539124,11.05344449,2398.3,2398.2,4.16973072]
[1750459539549,10.44117315,2398.3,2398.2,4.16973072]
[1750459539746,10.44117315,2398.3,2398.2,4.16979401]
[1750459540359,0.44117315,2398.3,2398.2,4.16979401]
[1750459540561,2.98617889,2398.4,2398.3,4.16962014]
[1750459540749,11.95863582,2398.4,2398.3,4.16962014]
[1750459541058,11.95874674,2398.4,2398.3,4.16962014]
[1750459541258,11.95879367,2398.4,2398.3,4.16962014]
[1750459541754,11.90035822,2398.4,2398.1,4.16990016]
[1750459541936,0.44070096,2398.3,2398.2,4.16979401]
[1750459542755,8.40670096,2398.3,2398.2,4.16979401]
[1750459542953,8.33920096,2398.3,2398.2,4.16979401]
[1750459543253,17.957,2398.3,2398.2,4.16979401]
[1750459543457,18.33880847,2398.3,2398.2,4.16979401]
[1750459543753,17.957,2398.3,2398.2,4.16979401]
[1750459543923,18.33868162,2398.3,2398.2,4.16979401]
[1750459544537,10.38168162,2398.3,2398.2,4.16979401]
[1750459544859,18.33868162,2398.3,2398.2,4.16979401]
[1750459545160,18.33870125,2398.3,2398.2,4.16979401]
[1750459545557,18.39720125,2398.3,2398.2,4.16979401]
[1750459545863,18.39711151,2398.3,2398.2,4.16979401]
[1750459546267,19.3019,2398.3,2397.1,0.7963]
[1750459546468,19.3019,2398.3,2396.8,4.17222526]
[1750459546469,21.07533857,2397.5,2397.4,4.17118545]
[1750459546782,10.0,2397.4,2396.8,0.7963]
[1750459547084,10.0,2397.1,2397.0,4.17188151]
[1750459547243,19.10919385,2397.1,2396.8,4.17221385]
[1750459547443,0.0585,2396.9,2396.5,4.96893383]
[1750459547670,7.932,2396.8,2396.7,4.17237599]
[1750459548174,7.936,2396.8,2396.7,4.17240372]
[1750459550237,0.0585,2396.7,2396.6,4.17257781]
[1750459550578,10.0585,2396.8,2396.7,4.17240372]
[1750459550772,10.0,2396.6,2396.5,4.17263689]
[1750459550941,17.936,2396.6,2396.5,4.17263689]
[1750459551140,17.936,2396.6,2396.4,4.17278588]
[1750459551141,17.9945,2396.6,2396.4,4.17284155]
[1750459551377,0.0585,2396.5,2396.4,4.17284155]
[1750459552172,20.5025,2396.5,2396.4,4.17284155]
[1750459553083,20.444,2396.5,2396.2,4.17313791]
[1750459553289,20.444,2396.5,2393.8,0.8025]
[1750459553290,0.7675,2396.1,2393.8,0.8025]
[1750459553438,0.7675,2395.2,2394.7,4.17578263]
[1750459553644,0.55,2394.6,2393.8,0.8289]
[1750459553951,21.584,2394.5,2394.4,4.17641162]
[1750459554267,18.686,2394.5,2394.4,4.17641162]
[1750459554452,8.686,2394.5,2394.4,4.17641162]
[1750459554638,0.55,2395.0,2394.8,4.17571404]
[1750459554639,10.0,2395.0,2394.8,4.17571404]
[1750459554841,11.575,2394.9,2394.8,4.17571404]
[1750459555279,11.575,2394.9,2394.7,4.1758378]
[1750459555440,10.60219695,2394.8,2394.3,4.17655037]
[1750459555646,0.0585,2394.5,2394.1,4.17683162]
[1750459555859,8.667,2394.4,2394.3,4.17657924]
[1750459556456,8.667,2394.4,2393.8,1.30316664]
[1750459556647,0.0585,2394.3,2393.9,4.1771305]
[1750459556846,11.556,2394.2,2393.9,4.17724021]
[1750459557044,0.0585,2394.1,2393.9,4.17724021]
[1750459557244,8.652,2394.0,2393.8,4.1773168]
[1750459557446,1.34960662,2394.1,2393.5,0.7629]
[1750459557447,1.29110662,2394.1,2393.5,0.7629]
[1750459557683,8.648,2394.0,2393.7,4.17761867]
[1750459557891,18.648,2394.0,2393.9,4.17728392]
[1750459558088,10.0,2394.0,2393.9,4.17728392]
[1750459558429,0.826,2394.5,2394.4,4.17641162]
[1750459558687,21.96603593,2394.5,2394.4,4.17641162]
[1750459558977,21.96603593,2394.5,2394.2,4.17674044]
[1750459559189,0.0585,2394.6,2393.8,4.1983779]
[1750459559346,0.0585,2394.6,2394.5,4.17623721]
[1750459559545,21.95464543,2394.6,2394.5,4.17623721]
[1750459560485,21.94264543,2394.6,2394.5,4.17623721]
[1750459560780,21.5685,2394.6,2394.5,4.17623721]
[1750459561084,21.87561035,2394.6,2394.5,4.17623721]
[1750459561464,21.8756308,2394.6,2394.5,4.17623721]
[1750459561779,21.87562899,2394.6,2394.5,4.17623721]
[1750459562000,21.87562756,2394.6,2394.5,4.17623721]
[1750459562284,21.87562756,2394.6,2394.0,4.17695915]
[1750459562285,10.0,2394.5,2394.2,4.17664226]
[1750459562476,9.08333499,2394.4,2394.2,4.17664226]
[1750459562650,0.37462756,2394.3,2394.2,4.17664226]
[1750459562852,11.215864,2394.3,2393.9,4.17716102]
[1750459563052,4.17629973,2394.5,2394.1,4.17693496]
[1750459563053,21.858564,2394.2,2394.1,4.17693496]
[1750459563252,10.0565,2394.1,2394.0,4.17703283]
[1750459563559,0.37458457,2394.1,2394.0,4.17703283]
[1750459563961,18.95658457,2394.1,2394.0,4.17703283]
[1750459564160,0.37530907,2394.1,2394.0,4.17703283]
[1750459564362,0.32252938,2394.1,2394.0,5.83093866]
[1750459564566,10.0,2395.8,2395.7,4.17414534]
[1750459564850,10.0,2395.4,2395.1,4.17514757]
[1750459565077,9.22447945,2395.3,2395.1,4.17513452]
[1750459565259,9.22447945,2395.3,2394.2,4.17669278]
[1750459565260,0.55,2394.4,2394.2,4.17669278]
[1750459565459,19.24191546,2394.3,2394.1,4.1768885]
[1750459565688,0.65786782,2394.2,2394.1,4.1768885]
[1750459565991,0.0565,2394.1,2394.0,4.17704185]
[1750459566294,19.24078312,2394.1,2394.0,4.17704185]
[1750459566492,19.24084192,2394.1,2394.0,4.17704185]
[1750459566787,19.24109776,2394.1,2394.0,4.17704185]
[1750459566967,19.22509776,2394.1,2394.0,4.17704185]
[1750459567184,10.60159776,2394.1,2394.0,4.17704185]
[1750459567357,18.562,2394.2,2394.1,4.17693496]
[1750459567553,19.22049571,2394.2,2394.1,4.17693496]
[1750459567768,18.9947602,2394.2,2394.1,4.17693496]
[1750459568088,19.22051409,2394.2,2394.1,4.17693496]
[1750459568459,19.21251409,2394.2,2394.1,4.17693496]
[1750459568657,19.1561601,2394.2,2394.1,4.17693496]
[1750459569001,19.2126601,2394.2,2394.1,4.17693496]
[1750459569159,19.21266432,2394.2,2394.1,4.17693496]
[1750459569584,19.21321952,2394.2,2394.1,4.17693496]
[1750459570305,19.21320024,2394.2,2394.1,4.17693496]
[1750459570873,19.21352349,2394.2,2394.1,4.17693496]
[1750459571177,0.0565,2394.1,2393.9,4.17725459]
[1750459571376,10.0,2393.9,2392.9,7.09426213]
[1750459571584,0.779,2394.1,2393.8,4.17745843]
[1750459571767,0.0565,2393.9,2393.8,4.17745843]
[1750459571964,0.28265232,2393.9,2393.8,4.17745843]
[1750459572197,0.65950927,2393.9,2393.8,4.17745843]
[1750459572686,10.60296012,2393.9,2393.8,4.17745843]
[1750459572889,0.60354317,2393.9,2393.8,5.01296655]
[1750459573187,10.0,2394.2,2394.1,4.17693496]
[1750459573399,10.0,2394.2,2393.4,0.0153]
[1750459573400,0.55,2393.7,2392.3,0.7611]
[1750459573606,0.55,2393.2,2392.5,0.02113115]
[1750459573901,10.0,2393.0,2392.9,4.17902962]
[1750459574213,0.6045271,2393.0,2392.9,4.17902962]
[1750459574572,8.6705,2393.1,2393.0,4.17885499]
[1750459574768,9.27493313,2393.1,2393.0,4.17885499]
[1750459574970,9.27493685,2393.1,2393.0,4.17885499]
[1750459575314,0.60443685,2393.1,2393.0,4.17885499]
[1750459575471,0.22654915,2393.1,2393.0,4.17885499]
[1750459575807,0.60510184,2393.1,2393.0,4.17885499]
[1750459576009,0.6051033,2393.1,2393.0,4.17885499]
[1750459576409,0.22752123,2393.1,2393.0,4.17885499]
[1750459576609,0.60672089,2393.1,2393.0,5.77574345]
[1750459576800,0.60673672,2393.1,2393.0,5.77574345]
[1750459577171,0.37919966,2393.1,2393.0,5.77574345]
[1750459577406,0.60674121,2393.1,2393.0,5.77574345]
[1750459577607,0.60674121,2393.1,2393.0,4.17885499]
[1750459577973,19.61723752,2393.1,2393.0,4.17885499]
[1750459578207,19.61706997,2393.1,2393.0,4.17885499]
[1750459578636,0.0565,2392.9,2392.8,4.02230913]
[1750459578803,0.55,2392.8,2392.4,0.2208927]
[1750459579135,0.98779061,2392.7,2392.6,4.17955362]
[1750459579338,0.98779061,2392.7,2392.4,0.2208927]
[1750459579339,0.0565,2392.5,2392.4,0.2208927]
[1750459579501,1.09653988,2392.5,2392.4,4.40069474]
[1750459579901,1.09653988,2392.5,2392.4,0.2208927]
[1750459580135,1.89193988,2392.5,2392.4,4.40079572]
[1750459580335,0.98778742,2392.5,2392.4,4.40079572]
[1750459580740,0.60786548,2392.5,2392.4,4.40079572]
[1750459581034,0.98716288,2392.5,2392.4,4.40079572]
[1750459581236,1.0955357,2392.5,2392.4,4.40079572]
[1750459581437,19.54327918,2392.5,2392.4,4.40079572]
[1750459581640,19.543257,2392.5,2392.4,4.40079572]
[1750459581820,19.54389498,2392.5,2392.4,4.40079572]
[1750459582140,10.98889498,2392.5,2392.4,4.40079572]
[1750459582638,0.98850643,2392.5,2392.4,4.40079572]
[1750459582829,0.9882745,2392.5,2392.4,4.40079572]
[1750459583202,0.98789252,2392.5,2392.4,4.40079572]
[1750459583417,0.98789252,2392.5,2392.4,5.20199572]
[1750459583613,0.60793046,2392.5,2392.4,6.15703083]
[1750459583818,0.7682,2393.3,2393.1,4.17868037]
[1750459583819,8.525,2393.2,2393.1,4.17868037]
[1750459584019,19.56948588,2393.2,2393.1,4.17868037]
[1750459584214,19.56956402,2393.2,2393.1,4.17868037]
[1750459584830,0.98799828,2393.2,2393.1,4.17868037]
[1750459585030,19.50799828,2393.2,2393.1,4.17868037]
[1750459585336,0.9880309,2393.2,2393.1,4.17868037]
[1750459585504,0.98804181,2393.2,2393.1,4.17868037]
[1750459585711,10.98804997,2393.2,2393.1,4.17868037]
[1750459586150,10.60803811,2393.2,2393.1,4.17868037]
[1750459586361,10.98805275,2393.2,2393.1,4.17868037]
[1750459587115,10.98807225,2393.2,2393.1,4.17868037]
[1750459587557,0.98807225,2393.2,2393.1,4.17868037]
[1750459587713,10.98807569,2393.2,2393.1,4.17868037]
[1750459587915,9.46007556,2393.2,2393.1,4.17868037]
[1750459588328,9.07988254,2393.2,2393.1,4.17868037]
[1750459588534,9.45981408,2393.2,2393.1,4.17868037]
[1750459588737,9.45980985,2393.2,2393.1,4.17868037]
[1750459588942,9.45980069,2393.2,2393.1,4.17868037]
[1750459589474,9.07975441,2393.2,2393.1,4.17868037]
[1750459589795,9.07975437,2393.2,2393.1,4.17868037]
[1750459589942,9.07975388,2393.2,2393.1,4.17868037]
[1750459590274,9.45970388,2393.2,2393.1,4.17868037]
[1750459590559,9.0797539,2393.2,2393.1,4.17868037]
[1750459590760,9.07985096,2393.2,2393.1,4.17868037]